fUST/lending_fUST_20240123
["ID","MTS","AMOUNT","RATE_DAILY","PERIOD"]
[312517914,1705941039752,-837.01063628,0.00027899,2]
[312517915,1705941039763,-837.01063628,0.00027899,2]
[312517916,1705941039774,-837.01063628,0.00027899,2]
[312517917,1705941039784,-837.01063628,0.00027899,2]
[312517919,1705941039795,-837.01063628,0.00027899,2]
[312517921,1705941039804,-837.01063628,0.00027899,2]
[312517923,1705941039814,-837.01063628,0.00027899,2]
[312517925,1705941039824,-837.01063628,0.00027899,2]
[312517927,1705941039834,-500.0,0.00027899,2]
[312517929,1705941039844,-837.01063628,0.00027899,2]
[312517931,1705941039854,-837.01063628,0.00027899,2]
[312517933,1705941039863,-837.01063628,0.00027899,2]
[312517934,1705941039873,-837.01063628,0.00027899,2]
[312517935,1705941039883,-837.01063628,0.00027899,2]
[312517936,1705941039892,-837.01063628,0.00027899,2]
[312517937,1705941039902,-837.01063628,0.00027899,2]
[312517938,1705941039911,-837.01063628,0.00027899,2]
[312517939,1705941039925,-837.01063628,0.00027899,2]
[312517940,1705941039933,-500.00000001,0.00027899,2]
[312517941,1705941039942,-1117.37086274,0.00027899,2]
[312517942,1705941039951,-500.0,0.00027899,2]
[312517943,1705941039960,-1117.37086274,0.00027899,2]
[312517944,1705941039969,-1117.37086274,0.00027899,2]
[312517945,1705941039977,-1117.37086274,0.00027899,2]
[312517946,1705941039986,-1117.37086274,0.00027899,2]
[312517947,1705941039995,-500.0,0.00027899,2]
[312517948,1705941040005,-256.93766353,0.00027899,2]
[312517949,1705941040014,-500.0,0.00027899,2]
[312517950,1705941040023,-500.0,0.00027899,2]
[312517951,1705941040033,-1117.37086274,0.00027899,2]
[312517952,1705941040042,-1117.37086274,0.00027899,2]
[312517953,1705941040051,-1117.37086274,0.00027899,2]
[312517955,1705941040060,-1117.37086274,0.00027899,2]
[312517956,1705941040069,-1117.37086274,0.00027899,2]
[312517957,1705941040078,-1117.37086274,0.00027899,2]
[312517958,1705941040086,-1117.37086274,0.00027899,2]
[312517959,1705941040096,-1117.37086274,0.00027899,2]
[312517960,1705941040108,-1117.37086274,0.00027899,2]
[312517961,1705941040117,-1117.37086274,0.00027899,2]
[312517962,1705941040126,-1117.37086274,0.00027899,2]
[312517963,1705941040136,-1117.37086274,0.00027899,2]
[312517964,1705941040146,-1117.37086274,0.00027899,2]
[312517965,1705941040155,-1117.37086274,0.00027899,2]
[312517966,1705941040164,-499.99999999,0.00027899,2]
[312517967,1705941040178,-753.30957266,0.00027899,2]
[312517968,1705941040297,-753.30957266,0.00027899,2]
[312517969,1705941040306,-753.30957266,0.00027899,2]
[312517970,1705941040315,-753.30957266,0.00027899,2]
[312517971,1705941040325,-753.30957266,0.00027899,2]
[312517972,1705941040334,-753.30957266,0.00027899,2]
[312517973,1705941040343,-753.30957266,0.00027899,2]
[312517974,1705941040352,-753.30957266,0.00027899,2]
[312517975,1705941040361,-753.30957266,0.00027899,2]
[312517976,1705941040371,-753.30957266,0.00027899,2]
[312517977,1705941040380,-753.30957266,0.00027899,2]
[312517978,1705941040389,-753.30957266,0.00027899,2]
[312517979,1705941040398,-1117.37086282,0.00027899,2]
[312517980,1705941040408,-1117.37086282,0.00027899,2]
[312517981,1705941040417,-903.97148711,0.00027899,2]
[312517982,1705941040429,-474.91621314,0.00027899,2]
[312517983,1705941040439,-382756.89601551,0.000279,2]
[312517984,1705941040448,-763.99864371,0.000279,2]
[312517985,1705941040457,-300.0,0.000279,2]
[312517986,1705941040466,-2084.29033128,0.000279,2]
[312517987,1705941040476,-3504.81302219,0.000279,2]
[312517988,1705941040485,-222702.33639265,0.000279,7]
[312517989,1705941040499,-10202.84952288,0.000279,7]
[312517990,1705941040515,-2688.98158543,0.000279,7]
[312518001,1705941040792,-10401.73133428,0.00027397,3]
[312518007,1705941040838,-0.91196894,0.00027397,3]
[312518275,1705941042894,-2243.53042003,0.00027397,3]
[312518277,1705941042906,-698.63906729,0.00027397,3]
[312518279,1705941042917,-368.16562814,0.00027397,3]
[312518829,1705942233426,-3746.05559912,7.362e-05,2]
[312518831,1705942233435,-288.90440088,7.363e-05,2]
[312518833,1705942233447,-614.72885428,7.363e-05,2]
[312518835,1705942233457,-2073.9279871,7.363e-05,2]
[312518837,1705942233469,-2103.40493137,7.363e-05,2]
[312518839,1705942233478,-178.91876323,7.364e-05,2]
[312518841,1705942233488,-1242.55121556,7.364e-05,2]
[312518843,1705942233497,-294.88989743,7.365e-05,2]
[312518845,1705942233507,-175.22193864,7.365e-05,2]
[312518847,1705942233516,-243.13309117,7.365e-05,2]
[312518849,1705942233526,-4813.95392208,7.365e-05,2]
[312518851,1705942233534,-19701.14547142,7.365e-05,2]
[312518853,1705942233544,-1439.19025016,7.366e-05,2]
[312518855,1705942233553,-15915.17297811,7.366e-05,2]
[312518857,1705942233562,-20902.38645894,7.366e-05,2]
[312518859,1705942233571,-13719.8221343,7.366e-05,2]
[312518861,1705942233581,-211.53795191,7.367e-05,2]
[312518863,1705942233591,-2413.15226601,7.367e-05,2]
[312518960,1705942238025,-644.40876473,7.361e-05,2]
[312518962,1705942238035,-260.87494487,7.362e-05,2]
[312518964,1705942238044,-1556.52836323,7.367e-05,2]
[312518970,1705942238092,-15897.597934,7.367e-05,2]
[312518972,1705942238102,-1293.76681809,7.367e-05,2]
[312518974,1705942238112,-21686.1459775,7.369e-05,2]
[312518976,1705942238122,-1640.08201467,7.386e-05,2]
[312518977,1705942238131,-637.12529357,7.394e-05,2]
[312518979,1705942238141,-167.00483785,7.395e-05,2]
[312518981,1705942238150,-24900.0,7.397e-05,2]
[312518982,1705942238159,-36965.59360405,7.492e-05,2]
[312518984,1705942238168,-309.59757263,7.502e-05,2]
[312518986,1705942238178,-1696.62198985,7.506e-05,2]
[312518988,1705942238187,-470.67463112,7.509e-05,2]
[312518990,1705942238197,-3405.9978279,7.512e-05,2]
[312518992,1705942238206,-1993.49479484,7.586e-05,2]
[312518994,1705942238216,-161.58015572,7.588e-05,2]
[312518996,1705942238225,-374.25522984,7.588e-05,2]
[312518998,1705942238235,-716.75305059,7.588e-05,2]
[312519000,1705942238244,-876.39189184,7.589e-05,2]
[312519002,1705942238253,-3485.76836938,7.593e-05,2]
[312519004,1705942238262,-16799.51432711,7.747e-05,2]
[312519006,1705942238271,-157.90819142,7.747e-05,2]
[312519008,1705942238280,-1603.2097273,7.747e-05,2]
[312519010,1705942238289,-631.79888623,7.747e-05,2]
[312519012,1705942238298,-1252.98171166,7.747e-05,2]
[312519013,1705942238307,-277.28029125,7.747e-05,2]
[312519015,1705942238316,-178.69540057,7.748e-05,2]
[312519017,1705942238325,-711.772838,7.748e-05,2]
[312519019,1705942238335,-709.18573505,7.748e-05,2]
[312519021,1705942238345,-265.48221302,7.748e-05,2]
[312519023,1705942238354,-1741.02914519,8e-05,2]
[312519025,1705942238363,-481.74906348,8.513e-05,2]
[312519027,1705942238373,-8762.82875188,8.514e-05,2]
[312519029,1705942238382,-977.99536434,8.516e-05,2]
[312519031,1705942238392,-163.1041432,9.571e-05,2]
[312519033,1705942238401,-155.32484539,9.571e-05,2]
[312519035,1705942238410,-156.02710907,9.571e-05,2]
[312519037,1705942238419,-309.59757263,9.573e-05,2]
[312519039,1705942238428,-276000.0,9.574e-05,2]
[312519041,1705942238437,-185.41016331,9.58e-05,2]
[312519043,1705942238446,-154.98450155,0.0001,2]
[312519045,1705942238455,-7960.18375069,0.0001,2]
[312519047,1705942238467,-213.43652609,0.0001,2]
[312519049,1705942238476,-154.98450155,0.0001,2]
[312519050,1705942238485,-1287.17016169,0.0001,2]
[312519052,1705942238495,-163.12898653,0.0001,2]
[312519054,1705942238504,-637.12529354,0.00012295,2]
[312519056,1705942238513,-248.75238779,0.000129,2]
[312519058,1705942238523,-248.75238772,0.000129,2]
[312519060,1705942238532,-154.98450155,0.0001369,2]
[312519062,1705942238542,-194.711448,0.00013699,2]
[312519064,1705942238551,-3000.0,0.00013699,2]
[312519066,1705942238561,-1266.7890629,0.00015,2]
[312519068,1705942238570,-687.96014716,0.00015,2]
[312519070,1705942238579,-154.98450155,0.00015,2]
[312519071,1705942238588,-247.29821682,0.00015,2]
[312519074,1705942238599,-1177.07113045,0.00015,2]
[312519075,1705942238608,-272.55691777,0.000165,2]
[312519077,1705942238617,-874.37604694,0.00017235,2]
[312519079,1705942238626,-637.12529354,0.00017295,2]
[312519081,1705942238635,-248.75238772,0.00017744,2]
[312519083,1705942238645,-10537.96841435,0.00017898,2]
[312519085,1705942238654,-1582.38308236,0.00019,2]
[312519087,1705942238663,-165.596525,0.00019178,2]
[312519089,1705942238673,-162.173195,0.00019178,2]
[312519091,1705942238683,-1114.53942019,0.000195,2]
[312519093,1705942238692,-154.98450155,0.0002,2]
[312519095,1705942238701,-1197.97622761,0.0002,2]
[312519097,1705942238712,-323.13003236,0.0002,2]
[312519100,1705942238721,-154.98450155,0.0002,2]
[312519102,1705942238732,-177.94716191,0.0002,2]
[312519103,1705942238741,-154.98450155,0.0002,2]
[312519105,1705942238750,-667.24083957,0.0002,2]
[312519107,1705942238760,-154.98450155,0.0002,2]
[312519108,1705942238769,-678.6288756,0.0002,2]
[312519110,1705942238778,-850.30063575,0.0002,2]
[312519112,1705942238786,-194.711448,0.00020548,2]
[312519114,1705942238795,-327.51224259,0.00021,2]
[312519115,1705942238805,-166.666666,0.00021918,2]
[312519117,1705942238814,-293.4468762,0.00022,4]
[312519119,1705942238824,-425.98515357,0.00022,2]
[312519121,1705942238833,-637.12529354,0.00022296,2]
[312519123,1705942238842,-166.666666,0.00022431,2]
[312519125,1705942238852,-166.666666,0.00022944,2]
[312519126,1705942238861,-248.75238772,0.00022981,2]
[312519128,1705942238870,-1571.50470749,0.00023,2]
[312519130,1705942238880,-166.666666,0.00023456,2]
[312519132,1705942238889,-166.666666,0.00023969,2]
[312519134,1705942238899,-4014.03339386,0.00024,2]
[312519136,1705942238908,-166.666666,0.00024482,2]
[312519138,1705942238917,-457.315996,0.00024658,2]
[312519140,1705942238927,-824.33300328,0.000247,2]
[312519142,1705942238936,-679.71377977,0.00025,2]
[312519144,1705942238945,-4723.24260277,0.00025,2]
[312519146,1705942238954,-7381.29040931,0.00025,2]
[312519148,1705942238964,-154.98450155,0.00025,2]
[312519150,1705942238973,-154.98450155,0.00025,2]
[312519152,1705942238983,-154.98450155,0.00025,2]
[312519154,1705942238992,-457.315996,0.0002544,2]
[312519156,1705942239002,-200.0,0.00025479,2]
[312519158,1705942239011,-3269.30760795,0.000258,2]
[312519160,1705942239020,-457.315996,0.00026223,2]
[312519162,1705942239029,-290.32272867,0.00027,2]
[312519164,1705942239039,-457.315996,0.00027006,2]
[312519165,1705942239048,-208.4755949,0.0002726,2]
[312519167,1705942239057,-637.12529354,0.00027296,2]
[312519169,1705942239067,-4011.11984949,0.00027298,2]
[312519171,1705942239077,-151.48485454,0.00027342,2]
[312519173,1705942239087,-14823.24711549,0.00027383,2]
[312519175,1705942239097,-322.88101783,0.00027395,2]
[312519177,1705942239105,-655.10251734,0.00027395,2]
[312519179,1705942239115,-500.0,0.00027396,2]
[312519181,1705942239124,-500.0,0.00027396,2]
[312519183,1705942239133,-500.0,0.00027396,2]
[312519185,1705942239143,-500.0,0.00027396,2]
[312519187,1705942239152,-500.0,0.00027396,2]
[312519189,1705942239161,-500.0,0.00027396,2]
[312519191,1705942239170,-500.0,0.00027396,2]
[312519193,1705942239179,-500.0,0.00027396,2]
[312519195,1705942239189,-500.0,0.00027396,2]
[312519197,1705942239198,-500.0,0.00027396,2]
[312519199,1705942239207,-500.0,0.00027396,2]
[312519201,1705942239217,-500.0,0.00027396,2]
[312519203,1705942239226,-500.0,0.00027396,2]
[312519205,1705942239235,-468.35833365,0.00027396,2]
[312519207,1705942239244,-500.0,0.00027396,2]
[312519209,1705942239254,-500.0,0.00027396,2]
[312519211,1705942239263,-500.0,0.00027396,2]
[312519213,1705942239272,-500.0,0.00027396,2]
[312519215,1705942239281,-500.0,0.00027396,2]
[312519217,1705942239290,-500.0,0.00027396,2]
[312519219,1705942239299,-500.0,0.00027396,2]
[312519221,1705942239308,-500.0,0.00027396,2]
[312519223,1705942239317,-500.0,0.00027396,2]
[312519225,1705942239326,-500.0,0.00027396,2]
[312519226,1705942239336,-500.0,0.00027396,2]
[312519229,1705942239346,-500.0,0.00027396,2]
[312519230,1705942239357,-486.24799426,0.00027396,2]
[312519232,1705942239368,-500.0,0.00027396,2]
[312519235,1705942239377,-500.0,0.00027396,2]
[312519236,1705942239387,-500.0,0.00027396,2]
[312519238,1705942239396,-559.31265879,0.00027396,2]
[312519240,1705942239405,-500.0,0.00027396,2]
[312519242,1705942239415,-500.0,0.00027396,2]
[312519244,1705942239424,-500.0,0.00027396,2]
[312519246,1705942239433,-500.0,0.00027396,2]
[312519248,1705942239443,-500.0,0.00027396,2]
[312519250,1705942239452,-500.0,0.00027396,2]
[312519252,1705942239465,-500.0,0.00027396,2]
[312519254,1705942239476,-500.0,0.00027396,2]
[312519256,1705942239485,-500.0,0.00027396,2]
[312519258,1705942239495,-500.0,0.00027396,2]
[312519260,1705942239505,-500.0,0.00027396,2]
[312519262,1705942239514,-500.0,0.00027396,2]
[312519264,1705942239524,-500.0,0.00027396,2]
[312519266,1705942239533,-500.0,0.00027396,2]
[312519268,1705942239543,-500.0,0.00027396,2]
[312519270,1705942239553,-500.0,0.00027396,2]
[312519272,1705942239562,-500.0,0.00027396,2]
[312519274,1705942239572,-517.91494754,0.00027396,2]
[312519276,1705942239581,-263.51623823,0.00027396,2]
[312519278,1705942239590,-500.0,0.00027396,2]
[312519280,1705942239600,-500.0,0.00027396,2]
[312519282,1705942239610,-500.0,0.00027396,2]
[312519284,1705942239620,-500.0,0.00027396,2]
[312519286,1705942239629,-500.0,0.00027396,2]
[312519288,1705942239638,-500.0,0.00027396,2]
[312519290,1705942239648,-500.0,0.00027396,2]
[312519292,1705942239657,-500.0,0.00027396,2]
[312519294,1705942239666,-500.0,0.00027396,2]
[312519296,1705942239676,-500.0,0.00027396,2]
[312519298,1705942239685,-500.0,0.00027396,2]
[312519300,1705942239694,-500.0,0.00027396,2]
[312519302,1705942239703,-500.0,0.00027396,2]
[312519304,1705942239711,-500.0,0.00027396,2]
[312519306,1705942239721,-500.0,0.00027396,2]
[312519308,1705942239730,-500.0,0.00027396,2]
[312519310,1705942239739,-500.0,0.00027396,2]
[312519312,1705942239749,-500.0,0.00027396,2]
[312519313,1705942239758,-500.0,0.00027396,2]
[312519316,1705942239767,-500.0,0.00027396,2]
[312519317,1705942239777,-1342.63981382,0.00027396,2]
[312519319,1705942239785,-1342.63981382,0.00027396,2]
[312519322,1705942239796,-1342.63981382,0.00027396,2]
[312519323,1705942239806,-1342.63981382,0.00027396,2]
[312519325,1705942239815,-1342.63981382,0.00027396,2]
[312519327,1705942239824,-1342.63981382,0.00027396,2]
[312519329,1705942239833,-1342.63981382,0.00027396,2]
[312519331,1705942239843,-1342.63981382,0.00027396,2]
[312519344,1705942239955,-1342.63981382,0.00027396,2]
[312519346,1705942239965,-500.0,0.00027396,2]
[312519350,1705942239974,-568.35833365,0.00027396,2]
[312519351,1705942239984,-1342.63981382,0.00027396,2]
[312519354,1705942239993,-500.0,0.00027396,2]
[312519356,1705942240002,-1342.63981382,0.00027396,2]
[312519358,1705942240011,-500.0,0.00027396,2]
[312519360,1705942240020,-500.0,0.00027396,2]
[312519362,1705942240029,-500.0,0.00027396,2]
[312519365,1705942240038,-1342.63981382,0.00027396,2]
[312519368,1705942240047,-500.0,0.00027396,2]
[312519371,1705942240056,-1342.63981382,0.00027396,2]
[312519373,1705942240065,-1342.63981382,0.00027396,2]
[312519376,1705942240073,-1342.63981382,0.00027396,2]
[312519379,1705942240082,-500.0,0.00027396,2]
[312519381,1705942240091,-877.38794235,0.00027396,2]
[312519385,1705942240100,-877.38794235,0.00027396,2]
[312519389,1705942240109,-500.0,0.00027396,2]
[312519393,1705942240118,-877.38794235,0.00027396,2]
[312519396,1705942240127,-877.38794235,0.00027396,2]
[312519400,1705942240136,-877.38794235,0.00027396,2]
[312519402,1705942240145,-302.77506541,0.00027396,2]
[312519404,1705942240154,-877.38794235,0.00027396,2]
[312519406,1705942240163,-877.38794235,0.00027396,2]
[312519408,1705942240171,-877.38794235,0.00027396,2]
[312519410,1705942240180,-877.38794235,0.00027396,2]
[312519412,1705942240189,-877.38794235,0.00027396,2]
[312519414,1705942240198,-877.38794235,0.00027396,2]
[312519416,1705942240207,-877.38794235,0.00027396,2]
[312519418,1705942240216,-877.38794235,0.00027396,2]
[312519420,1705942240225,-877.38794235,0.00027396,2]
[312519421,1705942240234,-877.38794235,0.00027396,2]
[312519423,1705942240243,-877.38794235,0.00027396,2]
[312519425,1705942240252,-877.38794235,0.00027396,2]
[312519427,1705942240261,-877.38794235,0.00027396,2]
[312519429,1705942240270,-877.38794235,0.00027396,2]
[312519431,1705942240279,-877.38794235,0.00027396,2]
[312519433,1705942240288,-1127.3879424,0.00027396,2]
[312519435,1705942240297,-500.0,0.00027396,2]
[312519437,1705942240306,-2386.82387849,0.00027396,2]
[312519439,1705942240315,-348.92273352,0.00027396,2]
[312519441,1705942240324,-500.0,0.00027396,2]
[312519443,1705942240333,-500.0,0.00027396,2]
[312519445,1705942240343,-500.0,0.00027396,2]
[312519447,1705942240352,-624.1653295,0.00027396,2]
[312519449,1705942240361,-500.0,0.00027396,2]
[312519451,1705942240370,-472.87510586,0.00027396,2]
[312519453,1705942240379,-500.0,0.00027396,2]
[312519455,1705942240388,-500.0,0.00027396,2]
[312519457,1705942240397,-500.0,0.00027396,2]
[312519459,1705942240407,-500.0,0.00027396,2]
[312519461,1705942240415,-500.0,0.00027396,2]
[312519463,1705942240424,-500.0,0.00027396,2]
[312519465,1705942240433,-439.0,0.00027396,2]
[312519467,1705942240444,-474.91621314,0.00027396,2]
[312519469,1705942240453,-451.46006429,0.00027396,2]
[312519471,1705942240464,-203.53551992,0.00027396,2]
[312519473,1705942240474,-451.46006428,0.00027396,2]
[312519475,1705942240483,-11200.05200609,0.00027396,2]
[312519477,1705942240492,-284227.95491571,0.00027397,7]
[312519479,1705942240501,-3504.81302219,0.00027397,2]
[312519481,1705942240511,-300.0,0.00027397,2]
[312519483,1705942240520,-4000.55725773,0.00027397,2]
[312519485,1705942240529,-763.99864371,0.00027397,2]
[312519486,1705942240539,-10300.80544997,0.00027397,2]
[312519488,1705942240549,-154.98450155,0.00027397,2]
[312519490,1705942240559,-155.0,0.00027397,2]
[312519492,1705942240568,-154.98450155,0.00027397,2]
[312519495,1705942240578,-343.09681091,0.00027397,2]
[312519497,1705942240590,-530.84656699,0.00027397,2]
[312519499,1705942240600,-155.0,0.00027397,2]
[312519501,1705942240609,-500.0,0.00027397,2]
[312519503,1705942240618,-11805.89,0.00027397,3]
[312519505,1705942240626,-20418.55,0.00027397,3]
[312519507,1705942240636,-17015.46,0.00027397,3]
[312519509,1705942240646,-14179.55,0.00027397,3]
[312519511,1705942240655,-500.0,0.00027534,2]
[312519513,1705942240664,-500.0,0.00027671,2]
[312519515,1705942240674,-153.0,0.00027671,2]
[312519516,1705942240682,-153.0,0.00027671,2]
[312519518,1705942240691,-153.0,0.00027671,2]
[312519520,1705942240700,-153.0,0.00027671,2]
[312519522,1705942240710,-199.1966855,0.00027671,2]
[312519524,1705942240719,-199.1966855,0.00027671,2]
[312519526,1705942240728,-199.1966855,0.00027671,2]
[312519528,1705942240736,-198.8061655,0.00027671,2]
[312519530,1705942240745,-457.315996,0.00027789,2]
[312519532,1705942240754,-500.0,0.00027808,2]
[312519534,1705942240764,-2861.14299592,0.000279,2]
[312519536,1705942240773,-261.58936724,0.000279,2]
[312519538,1705942240782,-500.0,0.00027945,2]
[312519540,1705942240790,-500.0,0.00027999,4]
[312519542,1705942240799,-500.0,0.00027999,4]
[312519544,1705942240809,-500.0,0.00027999,4]
[312519546,1705942240817,-500.0,0.00027999,4]
[312519548,1705942240827,-500.0,0.00027999,4]
[312519550,1705942240836,-500.0,0.00027999,4]
[312519552,1705942240845,-500.0,0.00027999,4]
[312519554,1705942240854,-500.0,0.00027999,4]
[312519556,1705942240863,-157.42869219,0.00027999,4]
[312519558,1705942240872,-500.0,0.00027999,4]
[312519559,1705942240882,-500.0,0.00027999,4]
[312519561,1705942240891,-500.0,0.00027999,4]
[312519563,1705942240900,-500.0,0.00027999,4]
[312519564,1705942240909,-500.0,0.00027999,4]
[312519565,1705942240918,-500.0,0.00027999,4]
[312519566,1705942240927,-500.0,0.00027999,4]
[312519568,1705942240937,-500.0,0.00027999,4]
[312519570,1705942240945,-500.0,0.00027999,4]
[312519571,1705942240954,-500.0,0.00027999,4]
[312519573,1705942240963,-353.8863426,0.00027999,4]
[312519575,1705942240972,-500.0,0.00027999,4]
[312519576,1705942240981,-500.0,0.00027999,4]
[312519578,1705942240990,-500.0,0.00027999,4]
[312519580,1705942240999,-500.0,0.00027999,4]
[312519582,1705942241008,-413.5412053,0.00027999,4]
[312519584,1705942241017,-500.0,0.00027999,4]
[312519586,1705942241026,-500.0,0.00027999,4]
[312519587,1705942241036,-500.0,0.00027999,4]
[312519588,1705942241045,-500.0,0.00027999,4]
[312519589,1705942241055,-500.0,0.00027999,4]
[312519590,1705942241065,-500.0,0.00027999,4]
[312519591,1705942241074,-500.0,0.00027999,4]
[312519592,1705942241083,-500.0,0.00027999,4]
[312519593,1705942241092,-191.20344586,0.00027999,4]
[312519595,1705942241101,-500.0,0.00027999,4]
[312519597,1705942241111,-500.0,0.00027999,4]
[312519599,1705942241120,-500.0,0.00027999,4]
[312519601,1705942241129,-500.0,0.00027999,4]
[312519603,1705942241138,-500.0,0.00027999,4]
[312519605,1705942241147,-500.0,0.00027999,4]
[312519607,1705942241156,-500.0,0.00027999,4]
[312519609,1705942241165,-500.0,0.00027999,4]
[312519611,1705942241174,-650.92609765,0.00027999,4]
[312519613,1705942241184,-500.0,0.00027999,4]
[312519615,1705942241193,-500.0,0.00027999,4]
[312519617,1705942241202,-500.0,0.00027999,4]
[312519619,1705942241211,-500.0,0.00027999,4]
[312519621,1705942241220,-500.0,0.00027999,4]
[312519623,1705942241230,-6545.18087169,0.00028,2]
[312519625,1705942241239,-500.0,0.00028082,2]
[312519626,1705942241247,-150.89807138,0.00028119,2]
[312519628,1705942241256,-500.0,0.00028219,2]
[312519630,1705942241266,-159.00439069,0.0002828,2]
[312519631,1705942241274,-364.31324246,0.00028356,2]
[312519632,1705942241385,-135.68675754,0.00028356,2]
[312519633,1705942241393,-225.56099349,0.00028406,2]
[312519634,1705942241402,-309.32455563,0.00028406,2]
[312519635,1705942241411,-429.09478055,0.00028406,2]
[312519636,1705942241420,-500.0,0.00028493,2]
[312519637,1705942241429,-457.315996,0.00028571,2]
[312519638,1705942241438,-500.0,0.0002863,2]
[312519639,1705942241446,-7645.86643967,0.000287,2]
[312519719,1705942243064,-2396.75811269,7.366e-05,2]
[312519722,1705942243076,-1829.11458058,7.366e-05,2]
[312519772,1705942243424,-22429.01008362,7.366e-05,2]
[312530168,1705943432197,-1242.55121556,6.398e-05,2]
[312530169,1705943432206,-265.48221302,6.399e-05,2]
[312530170,1705943432215,-644.40876473,6.399e-05,2]
[312530171,1705943432224,-1293.76681809,6.399e-05,2]
[312530172,1705943432233,-1708.72901339,6.399e-05,2]
[312530173,1705943432245,-17196.14255155,6.399e-05,2]
[312530174,1705943432253,-20902.38645894,6.399e-05,2]
[312530175,1705943432262,-711.772838,6.4e-05,2]
[312530176,1705943432271,-8761.98403332,6.4e-05,2]
[312530177,1705943432280,-15423.47525859,6.4e-05,2]
[312530239,1705943438169,-4813.95392208,6.398e-05,2]
[312530241,1705943438178,-3746.05559912,6.398e-05,2]
[312530243,1705943438187,-237.63369757,6.399e-05,2]
[312530245,1705943438196,-65783.90939389,6.4e-05,2]
[312530247,1705943438206,-211.53795191,6.401e-05,2]
[312530249,1705943438215,-178.91876323,6.401e-05,2]
[312530251,1705943438224,-2034.57165769,6.401e-05,2]
[312530253,1705943438233,-19867.27856324,6.401e-05,2]
[312530255,1705943438242,-260.87494487,6.402e-05,2]
[312530257,1705943438251,-175.22193864,6.402e-05,2]
[312530259,1705943438260,-19701.14547142,6.402e-05,2]
[312530260,1705943438270,-21686.1459775,6.402e-05,2]
[312530262,1705943438280,-13719.8221343,6.402e-05,2]
[312530263,1705943438289,-522.11697668,6.435e-05,2]
[312530265,1705943438298,-3973.85906822,6.45e-05,2]
[312530267,1705943438307,-3485.76836938,6.459e-05,2]
[312530269,1705943438316,-470.67463112,6.588e-05,2]
[312530271,1705943438325,-2073.9279871,6.588e-05,2]
[312530273,1705943438334,-2103.40493137,6.588e-05,2]
[312530275,1705943438343,-309.69031278,6.588e-05,2]
[312530277,1705943438352,-1993.49479484,6.589e-05,2]
[312530279,1705943438361,-1696.62198985,6.59e-05,2]
[312530281,1705943438370,-261.13863683,6.59e-05,2]
[312530283,1705943438380,-167.00483785,6.59e-05,2]
[312530285,1705943438389,-876.39189184,6.59e-05,2]
[312530287,1705943438398,-716.75305059,6.59e-05,2]
[312530289,1705943438408,-16799.51432711,6.591e-05,2]
[312530291,1705943438417,-637.12529357,6.596e-05,2]
[312530293,1705943438426,-977.99536434,6.596e-05,2]
[312530295,1705943438435,-15915.17297811,7e-05,2]
[312530297,1705943438444,-3405.9978279,7.159e-05,2]
[312530299,1705943438453,-1603.2097273,7.231e-05,2]
[312530301,1705943438463,-1252.98171166,7.231e-05,2]
[312530303,1705943438472,-277.28029125,7.231e-05,2]
[312530305,1705943438482,-157.90819142,7.231e-05,2]
[312530307,1705943438491,-178.69540057,7.231e-05,2]
[312530309,1705943438501,-631.79888623,7.231e-05,2]
[312530311,1705943438510,-161.58015572,7.231e-05,2]
[312530313,1705943438520,-309.59757263,7.231e-05,2]
[312530315,1705943438529,-374.25522984,7.231e-05,2]
[312530317,1705943438538,-1640.08201467,7.231e-05,2]
[312530319,1705943438547,-709.18573505,7.232e-05,2]
[312530321,1705943438556,-36965.59360405,7.232e-05,2]
[312530323,1705943438564,-10485.97576306,7.238e-05,2]
[312530325,1705943438573,-163.1041432,7.329e-05,2]
[312530327,1705943438582,-155.32484539,7.329e-05,2]
[312530329,1705943438591,-481.74906348,7.329e-05,2]
[312530331,1705943438600,-309.59757263,7.33e-05,2]
[312530333,1705943438609,-156.02710907,7.33e-05,2]
[312530335,1705943438618,-329.53567279,7.335e-05,2]
[312530337,1705943438627,-655.10251734,7.358e-05,2]
[312530339,1705943438636,-322.88101783,7.358e-05,2]
[312530341,1705943438645,-14823.24711549,7.359e-05,2]